[Event "FIDE World Rapid Chess Championship 2021"]
[White "Erigaisi, Arjun"]
[Black "Petrosian, Tigran L."]
[WhiteFideId "35009192"]
[BlackFideId "13301616"]
[WhiteElo "2397"]
[BlackElo "2621"]
[Result "1-0"]
[Round "02"]
[TimeControl "900+10"]
[Date "2021.12.26"]
[WhiteClock "0:00:55"]
[BlackClock "0:00:19"]

1. d4 {[%clk 0:15:17]}  d6 {[%clk 0:15:18]} 2. e4 {[%clk 0:15:25]}  Nf6 {[%clk 0:15:26]} 3. Nc3 {[%clk 0:15:33]}  g6 {[%clk 0:15:33]} 4. Be3 {[%clk 0:15:39]}  c6 {[%clk 0:15:41]} 5. Qd2 {[%clk 0:15:42]}  b5 {[%clk 0:15:48]} 6. f3 {[%clk 0:15:50]}  Nbd7 {[%clk 0:15:50]} 7. g4 {[%clk 0:15:48]}  Nb6 {[%clk 0:15:53]} 8. b3 {[%clk 0:15:50]}  h5 {[%clk 0:15:55]} 9. g5 {[%clk 0:15:57]}  Nfd7 {[%clk 0:16:04]} 10. d5 {[%clk 0:15:18]}  cxd5 {[%clk 0:13:42]} 11. Bd4 {[%clk 0:15:23]}  Rg8 {[%clk 0:07:52]} 12. Bxb5 {[%clk 0:15:29]}  dxe4 {[%clk 0:07:32]} 13. fxe4 {[%clk 0:15:36]}  Bb7 {[%clk 0:07:37]} 14. Nge2 {[%clk 0:15:10]}  a6 {[%clk 0:07:35]} 15. Bxd7+ {[%clk 0:07:55]}  Nxd7 {[%clk 0:07:43]} 16. O-O {[%clk 0:08:02]}  e6 {[%clk 0:04:49]} 17. Rf2 {[%clk 0:07:18]}  Be7 {[%clk 0:04:49]} 18. h4 {[%clk 0:07:06]}  Ne5 {[%clk 0:04:48]} 19. Qf4 {[%clk 0:06:51]}  Rf8 {[%clk 0:04:18]} 20. Bxe5 {[%clk 0:06:59]}  dxe5 {[%clk 0:04:27]} 21. Qxe5 {[%clk 0:07:07]}  Bd6 {[%clk 0:04:17]} 22. Qd4 {[%clk 0:07:08]}  Qc7 {[%clk 0:04:23]} 23. Qa4+ {[%clk 0:07:11]}  Ke7 {[%clk 0:03:35]} 24. Rf3 {[%clk 0:07:08]}  Rac8 {[%clk 0:03:18]} 25. Rd1 {[%clk 0:06:42]}  Qb6+ {[%clk 0:03:18]} 26. Kf1 {[%clk 0:06:20]}  Bc6 {[%clk 0:03:18]} 27. Qd4 {[%clk 0:06:23]}  Qxd4 {[%clk 0:02:42]} 28. Rxd4 {[%clk 0:06:42]}  Bb7 {[%clk 0:03:18]} 29. Rfd3 {[%clk 0:04:50]}  Rfd8 {[%clk 0:02:59]} 30. Kg2 {[%clk 0:04:38]}  Bc7 {[%clk 0:02:25]} 31. Rxd8 {[%clk 0:04:45]}  Bxd8 {[%clk 0:02:34]} 32. Kf3 {[%clk 0:04:52]}  Ba5 {[%clk 0:02:50]} 33. a3 {[%clk 0:04:57]}  Bc7 {[%clk 0:02:50]} 34. Na4 {[%clk 0:04:50]}  Bd6 {[%clk 0:02:50]} 35. c3 {[%clk 0:04:51]}  Bxa3 {[%clk 0:02:25]} 36. b4 {[%clk 0:04:51]}  Bc6 {[%clk 0:02:25]} 37. Nb6 {[%clk 0:03:22]}  Rc7 {[%clk 0:01:27]} 38. Nd4 {[%clk 0:03:03]}  Be8 {[%clk 0:01:33]} 39. Nb3 {[%clk 0:02:37]}  Bb5 {[%clk 0:00:58]} 40. c4 {[%clk 0:02:46]}  Be8 {[%clk 0:01:07]} 41. Nc5 {[%clk 0:03:22]}  Bxb4 {[%clk 0:01:07]} 42. Nxa6 {[%clk 0:03:22]}  Rc6 {[%clk 0:01:07]} 43. Nxb4 {[%clk 0:02:48]}  Rxb6 {[%clk 0:00:33]} 44. Rb3 {[%clk 0:02:48]}  Rd6 {[%clk 0:00:33]} 45. Nd3 {[%clk 0:02:48]}  Rd4 {[%clk 0:00:33]} 46. Rb7+ {[%clk 0:02:48]}  Kd6 {[%clk 0:00:33]} 47. c5+ {[%clk 0:02:48]}  Kc6 {[%clk 0:00:33]} 48. Rb6+ {[%clk 0:02:48]}  Kc7 {[%clk 0:00:33]} 49. Ke3 {[%clk 0:02:48]}  Rc4 {[%clk 0:00:33]} 50. Rb4 {[%clk 0:02:48]}  Rc2 {[%clk 0:00:33]} 51. Rb2 {[%clk 0:02:40]}  Rc4 {[%clk 0:00:12]} 52. Kf4 {[%clk 0:02:40]}  Bc6 {[%clk 0:00:12]} 53. Rb4 {[%clk 0:02:40]}  Rc3 {[%clk 0:00:19]} 54. Rd4 {[%clk 0:00:44]}  Be8 {[%clk 0:00:19]} 55. Ke5 {[%clk 0:00:44]}  Bb5 {[%clk 0:00:19]} 56. Nb4 {[%clk 0:00:44]}  Rf3 {[%clk 0:00:19]} 57. c6 {[%clk 0:00:44]}  Kb6 {[%clk 0:00:19]} 58. Rd8 {[%clk 0:00:27]}  Rb3 {[%clk 0:00:19]} 59. Rb8+ {[%clk 0:00:44]}  Kc5 {[%clk 0:00:19]} 60. c7 {[%clk 0:00:44]}  Bd7 {[%clk 0:00:19]} 61. Na6+ {[%clk 0:00:44]}  Kc4 {[%clk 0:00:19]} 62. Rxb3 {[%clk 0:00:55]} 1-0


[Site "http://www.Chess.com"]

[Event "FIDE World Rapid Chess Championship 2021"]
[White "Nihal, Sarin"]
[Black "Fedoseev, Vladimir"]
[WhiteFideId "25092340"]
[BlackFideId "24130737"]
[WhiteElo "2500"]
[BlackElo "2692"]
[Result "1/2-1/2"]
[Round "02"]
[TimeControl "900+10"]
[Date "2021.12.26"]
[WhiteClock "0:00:30"]
[BlackClock "0:00:25"]

1. d4 {[%clk 0:15:19]}  Nf6 {[%clk 0:15:18]} 2. Nf3 {[%clk 0:15:27]}  e6 {[%clk 0:15:27]} 3. e3 {[%clk 0:15:36]}  b6 {[%clk 0:15:27]} 4. Bd3 {[%clk 0:15:40]}  Bb7 {[%clk 0:15:36]} 5. O-O {[%clk 0:15:48]}  c5 {[%clk 0:15:36]} 6. c4 {[%clk 0:15:56]}  d6 {[%clk 0:14:03]} 7. Nc3 {[%clk 0:15:55]}  Nbd7 {[%clk 0:14:11]} 8. b3 {[%clk 0:14:36]}  Be7 {[%clk 0:14:17]} 9. Bb2 {[%clk 0:14:41]}  cxd4 {[%clk 0:13:49]} 10. exd4 {[%clk 0:14:46]}  d5 {[%clk 0:13:49]} 11. Qe2 {[%clk 0:14:46]}  O-O {[%clk 0:13:44]} 12. Rad1 {[%clk 0:14:54]}  a6 {[%clk 0:10:51]} 13. Ne5 {[%clk 0:14:56]}  dxc4 {[%clk 0:10:57]} 14. bxc4 {[%clk 0:14:59]}  b5 {[%clk 0:11:05]} 15. cxb5 {[%clk 0:14:36]}  axb5 {[%clk 0:11:13]} 16. Bxb5 {[%clk 0:14:44]}  Nxe5 {[%clk 0:09:42]} 17. dxe5 {[%clk 0:14:52]}  Nd5 {[%clk 0:09:51]} 18. a4 {[%clk 0:14:57]}  Qb6 {[%clk 0:09:26]} 19. Ne4 {[%clk 0:14:54]}  Nf4 {[%clk 0:08:50]} 20. Qf3 {[%clk 0:14:44]}  Ng6 {[%clk 0:11:13]} 21. Rd7 {[%clk 0:10:37]}  Bd5 {[%clk 0:08:42]} 22. g3 {[%clk 0:09:07]}  Rfd8 {[%clk 0:07:46]} 23. Rxd8+ {[%clk 0:09:11]}  Bxd8 {[%clk 0:07:14]} 24. Rd1 {[%clk 0:07:15]}  Qb7 {[%clk 0:06:14]} 25. Rxd5 {[%clk 0:07:21]}  Qxd5 {[%clk 0:05:00]} 26. Bc6 {[%clk 0:07:30]}  Qa2 {[%clk 0:05:09]} 27. Nd6 {[%clk 0:05:41]}  Ra7 {[%clk 0:04:24]} 28. Bd4 {[%clk 0:05:44]}  Re7 {[%clk 0:04:31]} 29. Be8 {[%clk 0:04:47]}  Qb1+ {[%clk 0:01:55]} 30. Kg2 {[%clk 0:04:55]}  Qb8 {[%clk 0:02:04]} 31. Bxf7+ {[%clk 0:04:50]}  Kh8 {[%clk 0:02:13]} 32. Be8 {[%clk 0:00:27]}  Bc7 {[%clk 0:01:38]} 33. Bb5 {[%clk 0:00:36]}  Kg8 {[%clk 0:02:13]} 34. Qc6 {[%clk 0:04:50]}  Qd8 {[%clk 0:02:13]} 35. h4 {[%clk 0:04:50]}  Ba5 {[%clk 0:00:33]} 36. Bc4 {[%clk 0:00:42]}  Nf8 {[%clk 0:00:32]} 37. Qe4 {[%clk 0:00:42]}  Bb4 {[%clk 0:00:32]} 38. Nb5 {[%clk 0:00:42]}  Rd7 {[%clk 0:00:32]} 39. Be3 {[%clk 0:00:42]}  Qc8 {[%clk 0:00:32]} 40. Bxe6+ {[%clk 0:00:42]}  Nxe6 {[%clk 0:00:32]} 41. Qxb4 {[%clk 0:00:42]}  Qc6+ {[%clk 0:00:32]} 42. f3 {[%clk 0:00:42]}  Qc2+ {[%clk 0:00:32]} 43. Kh3 {[%clk 0:00:42]}  Rd1 {[%clk 0:00:32]} 44. Qe4 {[%clk 0:00:20]}  Rh1+ {[%clk 0:00:37]} 45. Kg4 {[%clk 0:00:20]}  Qc8 {[%clk 0:00:37]} 46. Nd6 {[%clk 0:00:20]}  Qd7 {[%clk 0:00:37]} 47. Qb7 {[%clk 0:00:20]}  g6 {[%clk 0:00:37]} 48. Bh6 {[%clk 0:00:20]}  Qxb7 {[%clk 0:00:37]} 49. Nxb7 {[%clk 0:00:20]}  Ra1 {[%clk 0:00:37]} 50. a5 {[%clk 0:00:20]}  Ra3 {[%clk 0:00:37]} 51. h5 {[%clk 0:00:20]}  gxh5+ {[%clk 0:00:37]} 52. Kf5 {[%clk 0:00:20]}  Nd4+ {[%clk 0:00:20]} 53. Ke4 {[%clk 0:00:18]}  Nc6 {[%clk 0:00:20]} 54. e6 {[%clk 0:00:18]}  Ra4+ {[%clk 0:00:20]} 55. Kd5 {[%clk 0:00:18]}  Ne7+ {[%clk 0:00:20]} 56. Kc5 {[%clk 0:00:18]}  Nf5 {[%clk 0:00:20]} 57. Bg5 {[%clk 0:00:18]}  Kf8 {[%clk 0:00:15]} 58. Kb6 {[%clk 0:00:18]}  Rb4+ {[%clk 0:00:20]} 59. Kc7 {[%clk 0:00:18]}  Ra4 {[%clk 0:00:20]} 60. g4 {[%clk 0:00:18]}  hxg4 {[%clk 0:00:20]} 61. fxg4 {[%clk 0:00:18]}  Rxg4 {[%clk 0:00:20]} 62. a6 {[%clk 0:00:18]}  Ra4 {[%clk 0:00:20]} 63. Nc5 {[%clk 0:00:32]}  Ra1 {[%clk 0:00:26]} 64. Bf6 {[%clk 0:00:30]}  Ra2 {[%clk 0:00:25]} 65. Kd8 {[%clk 0:00:30]}  h5 {[%clk 0:00:25]} 1/2-1/2


[Site "http://www.Chess.com"]

[Event "FIDE World Rapid Chess Championship 2021"]
[White "Duda, Jan-Krzysztof"]
[Black "Volokitin, Andrei"]
[WhiteFideId "1170546"]
[BlackFideId "14107090"]
[WhiteElo "2801"]
[BlackElo "2631"]
[Result "1-0"]
[Round "03"]
[TimeControl "900+10"]
[Date "2021.12.26"]
[WhiteClock "0:00:48"]
[BlackClock "0:00:13"]

1. d4 {[%clk 0:15:17]}  Nf6 {[%clk 0:15:17]} 2. c4 {[%clk 0:15:17]}  e6 {[%clk 0:15:17]} 3. Nf3 {[%clk 0:15:17]}  d5 {[%clk 0:15:17]} 4. Nc3 {[%clk 0:15:17]}  Bb4 {[%clk 0:15:17]} 5. cxd5 {[%clk 0:15:52]}  exd5 {[%clk 0:15:46]} 6. Bg5 {[%clk 0:15:52]}  h6 {[%clk 0:15:46]} 7. Bh4 {[%clk 0:15:52]}  O-O {[%clk 0:15:46]} 8. e3 {[%clk 0:15:52]}  Bf5 {[%clk 0:15:46]} 9. Be2 {[%clk 0:15:58]}  Nbd7 {[%clk 0:14:11]} 10. O-O {[%clk 0:15:18]}  c6 {[%clk 0:14:11]} 11. Qb3 {[%clk 0:15:20]}  Ba5 {[%clk 0:11:15]} 12. Bg3 {[%clk 0:13:39]}  Qb6 {[%clk 0:08:17]} 13. Nd2 {[%clk 0:08:20]}  c5 {[%clk 0:07:46]} 14. dxc5 {[%clk 0:08:23]}  Nxc5 {[%clk 0:05:49]} 15. Qxb6 {[%clk 0:08:23]}  axb6 {[%clk 0:05:57]} 16. Rfc1 {[%clk 0:05:59]}  Rfc8 {[%clk 0:04:15]} 17. a3 {[%clk 0:05:52]}  Bxc3 {[%clk 0:03:43]} 18. Rxc3 {[%clk 0:03:06]}  Na4 {[%clk 0:03:43]} 19. Rxc8+ {[%clk 0:03:11]}  Rxc8 {[%clk 0:02:19]} 20. Be5 {[%clk 0:03:11]}  Rc2 {[%clk 0:02:19]} 21. Bd1 {[%clk 0:03:11]}  Rxd2 {[%clk 0:01:53]} 22. Bxa4 {[%clk 0:02:39]}  Ne4 {[%clk 0:01:53]} 23. f3 {[%clk 0:02:48]}  Nc5 {[%clk 0:00:49]} 24. Rd1 {[%clk 0:02:48]}  Re2 {[%clk 0:00:57]} 25. Bb5 {[%clk 0:02:11]}  Rxe3 {[%clk 0:00:57]} 26. Rxd5 {[%clk 0:02:11]}  Bd3 {[%clk 0:00:57]} 27. Rd8+ {[%clk 0:02:07]}  Kh7 {[%clk 0:00:16]} 28. Bxd3+ {[%clk 0:02:07]}  Nxd3 {[%clk 0:00:16]} 29. Bc3 {[%clk 0:02:07]}  Nf4 {[%clk 0:00:16]} 30. Rd7 {[%clk 0:01:08]}  Re2 {[%clk 0:00:13]} 31. Rxf7 {[%clk 0:01:08]}  Ne6 {[%clk 0:00:13]} 32. Re7 {[%clk 0:01:08]}  Nd4 {[%clk 0:00:13]} 33. Rxb7 {[%clk 0:00:48]}  Nf5 {[%clk 0:00:13]} 34. g4 {[%clk 0:00:48]}  Ne3 {[%clk 0:00:13]} 35. Rxg7+ {[%clk 0:00:48]}  Kh8 {[%clk 0:00:13]} 36. Re7+ {[%clk 0:00:48]}  Kg8 {[%clk 0:00:13]} 37. Bd4 {[%clk 0:00:48]} 1-0


[Site "http://www.Chess.com"]

[Event "FIDE World Rapid Chess Championship 2021"]
[White "Quparadze, Giga"]
[Black "Grischuk, Alexander"]
[WhiteFideId "13602250"]
[BlackFideId "4126025"]
[WhiteElo "2583"]
[BlackElo "2763"]
[Result "0-1"]
[Round "03"]
[TimeControl "900+10"]
[Date "2021.12.26"]
[WhiteClock "0:11:00"]
[BlackClock "0:00:50"]

1. e4 {[%clk 0:15:00]}  c5 {[%clk 0:15:00]} 2. Nf3 {[%clk 0:15:00]}  d6 {[%clk 0:15:00]} 3. d4 {[%clk 0:15:00]}  cxd4 {[%clk 0:15:00]} 4. Nxd4 {[%clk 0:15:59]}  Nf6 {[%clk 0:15:35]} 5. Nc3 {[%clk 0:15:59]}  a6 {[%clk 0:15:35]} 6. Nb3 {[%clk 0:15:59]}  e6 {[%clk 0:15:35]} 7. g4 {[%clk 0:15:59]}  b5 {[%clk 0:15:35]} 8. g5 {[%clk 0:15:59]}  b4 {[%clk 0:15:02]} 9. Nd5 {[%clk 0:16:04]}  Nxe4 {[%clk 0:12:07]} 10. Bg2 {[%clk 0:16:04]}  exd5 {[%clk 0:12:07]} 11. Qxd5 {[%clk 0:16:04]}  Ra7 {[%clk 0:12:07]} 12. Be3 {[%clk 0:15:31]}  Bb7 {[%clk 0:11:32]} 13. Qd4 {[%clk 0:12:39]}  Nc5 {[%clk 0:09:59]} 14. Bxb7 {[%clk 0:12:46]}  Rxb7 {[%clk 0:08:58]} 15. O-O-O {[%clk 0:12:46]}  Nc6 {[%clk 0:09:01]} 16. Qd5 {[%clk 0:12:20]}  Nxb3+ {[%clk 0:09:01]} 17. axb3 {[%clk 0:12:20]}  Qd7 {[%clk 0:09:01]} 18. Bd4 {[%clk 0:12:20]}  Rb5 {[%clk 0:05:59]} 19. Qe4+ {[%clk 0:12:16]}  Kd8 {[%clk 0:05:12]} 20. Rhe1 {[%clk 0:12:16]}  Rxg5 {[%clk 0:05:21]} 21. Bb6+ {[%clk 0:11:20]}  Kc8 {[%clk 0:05:21]} 22. Rd5 {[%clk 0:11:20]}  Be7 {[%clk 0:05:21]} 23. Qc4 {[%clk 0:11:20]}  Rxd5 {[%clk 0:05:21]} 24. Qxd5 {[%clk 0:11:04]}  Re8 {[%clk 0:03:09]} 25. Kb1 {[%clk 0:10:24]}  Bd8 {[%clk 0:03:02]} 26. Rxe8 {[%clk 0:10:16]}  Qxe8 {[%clk 0:02:38]} 27. Be3 {[%clk 0:10:16]}  Bc7 {[%clk 0:01:56]} 28. Qf5+ {[%clk 0:09:19]}  Kb7 {[%clk 0:01:56]} 29. Qxh7 {[%clk 0:09:19]}  g6 {[%clk 0:01:56]} 30. h4 {[%clk 0:09:19]}  Bb6 {[%clk 0:01:56]} 31. h5 {[%clk 0:09:19]}  gxh5 {[%clk 0:01:56]} 32. Qxh5 {[%clk 0:09:19]}  Bxe3 {[%clk 0:01:56]} 33. fxe3 {[%clk 0:09:19]}  Qe6 {[%clk 0:01:56]} 34. Qf3 {[%clk 0:09:42]}  f5 {[%clk 0:01:49]} 35. Qf4 {[%clk 0:09:42]}  a5 {[%clk 0:01:49]} 36. Qg5 {[%clk 0:09:42]}  Kb6 {[%clk 0:01:49]} 37. Qg1 {[%clk 0:09:42]}  Qe4 {[%clk 0:01:49]} 38. Qf2 {[%clk 0:10:04]}  a4 {[%clk 0:01:47]} 39. Ka2 {[%clk 0:10:04]}  axb3+ {[%clk 0:01:47]} 40. cxb3 {[%clk 0:10:04]}  Ne5 {[%clk 0:01:47]} 41. Qg1 {[%clk 0:10:04]}  Qa8+ {[%clk 0:01:47]} 42. Kb1 {[%clk 0:10:04]}  Qe4+ {[%clk 0:01:47]} 43. Ka2 {[%clk 0:10:04]}  Ng4 {[%clk 0:01:47]} 44. Qd1 {[%clk 0:10:26]}  Qa8+ {[%clk 0:01:22]} 45. Kb1 {[%clk 0:10:26]}  Qe4+ {[%clk 0:01:22]} 46. Ka2 {[%clk 0:10:26]}  Kc7 {[%clk 0:01:22]} 47. Qc1+ {[%clk 0:10:30]}  Kd7 {[%clk 0:01:24]} 48. Qg1 {[%clk 0:10:30]}  Qa8+ {[%clk 0:01:24]} 49. Kb1 {[%clk 0:10:30]}  Qe4+ {[%clk 0:01:24]} 50. Ka2 {[%clk 0:10:30]}  Nxe3 {[%clk 0:01:24]} 51. Qg7+ {[%clk 0:10:30]}  Kc6 {[%clk 0:00:56]} 52. Qa7 {[%clk 0:10:45]}  Qe5 {[%clk 0:00:56]} 53. Qa4+ {[%clk 0:10:45]}  Kc5 {[%clk 0:00:56]} 54. Qa5+ {[%clk 0:10:45]}  Kd4 {[%clk 0:00:56]} 55. Qxb4+ {[%clk 0:10:45]}  Kd3 {[%clk 0:00:56]} 56. Qe1 {[%clk 0:10:58]}  f4 {[%clk 0:01:08]} 57. Qf2 {[%clk 0:10:58]}  Ke4 {[%clk 0:01:08]} 58. Qh4 {[%clk 0:10:58]}  d5 {[%clk 0:01:08]} 59. b4 {[%clk 0:10:58]}  d4 {[%clk 0:01:08]} 60. Qh7+ {[%clk 0:10:58]}  Kf3 {[%clk 0:01:08]} 61. Qh1+ {[%clk 0:10:58]}  Kf2 {[%clk 0:00:50]} 62. Qc1 {[%clk 0:11:00]}  f3 {[%clk 0:00:50]} 0-1


[Site "http://www.Chess.com"]

[Event "FIDE World Rapid Chess Championship 2021"]
[White "Gareyev, Timur"]
[Black "Rapport, Richard"]
[WhiteFideId "14200937"]
[BlackFideId "738590"]
[WhiteElo "2578"]
[BlackElo "2750"]
[Result "1-0"]
[Round "03"]
[TimeControl "900+10"]
[Date "2021.12.26"]
[WhiteClock "0:00:53"]
[BlackClock "0:00:32"]

1. d4 {[%clk 0:15:17]}  e6 {[%clk 0:15:17]} 2. c4 {[%clk 0:15:17]}  f5 {[%clk 0:15:17]} 3. Nc3 {[%clk 0:14:45]}  Nf6 {[%clk 0:15:33]} 4. Nf3 {[%clk 0:14:45]}  Bb4 {[%clk 0:15:33]} 5. Qb3 {[%clk 0:14:45]}  a5 {[%clk 0:15:33]} 6. e3 {[%clk 0:14:45]}  b6 {[%clk 0:15:33]} 7. Be2 {[%clk 0:14:45]}  O-O {[%clk 0:15:19]} 8. Ne5 {[%clk 0:14:03]}  Bb7 {[%clk 0:15:03]} 9. Bd2 {[%clk 0:14:03]}  Ne4 {[%clk 0:14:41]} 10. Nxe4 {[%clk 0:13:14]}  fxe4 {[%clk 0:13:41]} 11. Bxb4 {[%clk 0:13:14]}  axb4 {[%clk 0:13:55]} 12. f4 {[%clk 0:11:02]}  exf3 {[%clk 0:13:55]} 13. Bxf3 {[%clk 0:10:58]}  Bxf3 {[%clk 0:13:55]} 14. Nxf3 {[%clk 0:10:58]}  c5 {[%clk 0:13:55]} 15. O-O {[%clk 0:10:58]}  Nc6 {[%clk 0:12:10]} 16. d5 {[%clk 0:11:09]}  exd5 {[%clk 0:11:42]} 17. cxd5 {[%clk 0:10:59]}  Na5 {[%clk 0:11:42]} 18. Qd3 {[%clk 0:10:59]}  Qf6 {[%clk 0:11:42]} 19. b3 {[%clk 0:10:59]}  Nb7 {[%clk 0:10:01]} 20. e4 {[%clk 0:10:26]}  Nd6 {[%clk 0:10:01]} 21. e5 {[%clk 0:09:49]}  Qf5 {[%clk 0:08:49]} 22. Qe3 {[%clk 0:07:27]}  Nb5 {[%clk 0:08:56]} 23. Nd2 {[%clk 0:07:18]}  Qg6 {[%clk 0:07:03]} 24. Nf3 {[%clk 0:05:43]}  Nc3 {[%clk 0:06:18]} 25. d6 {[%clk 0:05:43]}  Rf4 {[%clk 0:06:18]} 26. Nd2 {[%clk 0:04:41]}  Rd4 {[%clk 0:05:53]} 27. Rf2 {[%clk 0:03:09]}  h6 {[%clk 0:02:56]} 28. Nc4 {[%clk 0:03:08]}  Re8 {[%clk 0:02:27]} 29. Qf3 {[%clk 0:01:42]}  Ne4 {[%clk 0:01:22]} 30. Qf5 {[%clk 0:01:42]}  Kh7 {[%clk 0:00:12]} 31. Rf4 {[%clk 0:01:08]}  Nc3 {[%clk 0:00:12]} 32. Qxg6+ {[%clk 0:01:08]}  Kxg6 {[%clk 0:00:12]} 33. Rxd4 {[%clk 0:00:39]}  cxd4 {[%clk 0:00:32]} 34. Re1 {[%clk 0:00:39]}  Kf5 {[%clk 0:00:32]} 35. Kf2 {[%clk 0:00:39]}  b5 {[%clk 0:00:32]} 36. g4+ {[%clk 0:00:39]}  Kf4 {[%clk 0:00:32]} 37. Nb2 {[%clk 0:00:39]}  Ne4+ {[%clk 0:00:21]} 38. Kg2 {[%clk 0:00:28]}  Kxe5 {[%clk 0:00:21]} 39. Nd3+ {[%clk 0:00:28]}  Kxd6 {[%clk 0:00:21]} 40. Nxb4 {[%clk 0:00:28]}  Re6 {[%clk 0:00:21]} 41. Nc2 {[%clk 0:00:28]}  Kc5 {[%clk 0:00:21]} 42. Rd1 {[%clk 0:00:15]}  Nc3 {[%clk 0:00:41]} 43. b4+ {[%clk 0:00:15]}  Kb6 {[%clk 0:00:41]} 44. Rd2 {[%clk 0:00:15]}  d3 {[%clk 0:00:41]} 45. Nd4 {[%clk 0:00:15]}  Rd6 {[%clk 0:00:41]} 46. Nf5 {[%clk 0:00:15]}  Rd5 {[%clk 0:00:41]} 47. Kf3 {[%clk 0:00:26]}  Nb1 {[%clk 0:00:32]} 48. Rd1 {[%clk 0:00:26]}  Nc3 {[%clk 0:00:32]} 49. Rd2 {[%clk 0:00:26]}  h5 {[%clk 0:00:40]} 50. h3 {[%clk 0:00:48]}  hxg4+ {[%clk 0:00:40]} 51. hxg4 {[%clk 0:00:48]}  Nb1 {[%clk 0:00:40]} 52. Rd1 {[%clk 0:00:48]}  Nc3 {[%clk 0:00:40]} 53. Rd2 {[%clk 0:00:48]}  Nxa2 {[%clk 0:00:40]} 54. Ne3 {[%clk 0:00:48]}  Rd4 {[%clk 0:00:40]} 55. Rxa2 {[%clk 0:00:48]}  d2 {[%clk 0:00:40]} 56. Ke2 {[%clk 0:00:48]}  d1=N {[%clk 0:00:40]} 57. Nxd1 {[%clk 0:00:48]}  Rxg4 {[%clk 0:00:40]} 58. Ne3 {[%clk 0:00:44]}  Rh4 {[%clk 0:00:37]} 59. Kd3 {[%clk 0:00:44]}  d5 {[%clk 0:00:37]} 60. Rg2 {[%clk 0:00:44]}  Rh7 {[%clk 0:00:32]} 61. Rg6+ {[%clk 0:00:53]}  Kc7 {[%clk 0:00:32]} 62. Nf5 {[%clk 0:00:53]}  Rh5 {[%clk 0:00:32]} 63. Rxg7+ {[%clk 0:00:53]}  Kb6 {[%clk 0:00:32]} 64. Rg6+ {[%clk 0:00:53]}  Kb7 {[%clk 0:00:32]} 65. Rf6 {[%clk 0:00:53]}  Rg5 {[%clk 0:00:32]} 66. Kd4 {[%clk 0:00:53]} 1-0


[Site "http://www.Chess.com"]

[Event "FIDE World Rapid Chess Championship 2021"]
[White "Harsha, Bharathakoti"]
[Black "Onyshchuk, Volodymyr"]
[WhiteFideId "5078776"]
[BlackFideId "14114038"]
[WhiteElo "2484"]
[BlackElo "2687"]
[Result "1-0"]
[Round "03"]
[TimeControl "900+10"]
[Date "2021.12.26"]
[WhiteClock "0:03:26"]
[BlackClock "0:01:22"]

1. d4 {[%clk 0:15:00]}  d6 {[%clk 0:15:27]} 2. Nf3 {[%clk 0:15:24]}  g6 {[%clk 0:15:27]} 3. g3 {[%clk 0:15:24]}  Bg7 {[%clk 0:15:27]} 4. Bg2 {[%clk 0:15:24]}  Nf6 {[%clk 0:15:27]} 5. O-O {[%clk 0:15:24]}  O-O {[%clk 0:15:27]} 6. b3 {[%clk 0:15:24]}  b5 {[%clk 0:15:27]} 7. Nbd2 {[%clk 0:15:24]}  Bb7 {[%clk 0:15:27]} 8. c4 {[%clk 0:15:24]}  bxc4 {[%clk 0:15:27]} 9. bxc4 {[%clk 0:15:24]}  Nbd7 {[%clk 0:15:27]} 10. Rb1 {[%clk 0:15:24]}  Qc8 {[%clk 0:15:27]} 11. Qc2 {[%clk 0:15:07]}  Rb8 {[%clk 0:15:43]} 12. e4 {[%clk 0:15:03]}  c5 {[%clk 0:15:07]} 13. d5 {[%clk 0:15:03]}  Ba6 {[%clk 0:15:11]} 14. Rb3 {[%clk 0:13:40]}  Qc7 {[%clk 0:15:11]} 15. Bb2 {[%clk 0:13:40]}  Rb6 {[%clk 0:15:14]} 16. Bc3 {[%clk 0:12:53]}  Rbb8 {[%clk 0:15:14]} 17. Ra3 {[%clk 0:12:53]}  Bc8 {[%clk 0:15:14]} 18. h3 {[%clk 0:12:53]}  Nb6 {[%clk 0:14:17]} 19. Re1 {[%clk 0:12:26]}  e5 {[%clk 0:13:41]} 20. dxe6 {[%clk 0:12:05]}  Bxe6 {[%clk 0:10:55]} 21. e5 {[%clk 0:10:20]}  Bf5 {[%clk 0:11:03]} 22. Qc1 {[%clk 0:10:20]}  Ne8 {[%clk 0:11:03]} 23. g4 {[%clk 0:09:38]}  Be6 {[%clk 0:10:33]} 24. Ng5 {[%clk 0:09:38]}  dxe5 {[%clk 0:10:33]} 25. Nxe6 {[%clk 0:09:38]}  fxe6 {[%clk 0:10:33]} 26. Ra6 {[%clk 0:07:58]}  Nd6 {[%clk 0:09:57]} 27. Bxe5 {[%clk 0:07:08]}  Bxe5 {[%clk 0:09:57]} 28. Rxe5 {[%clk 0:07:08]}  Rbd8 {[%clk 0:09:57]} 29. Rxe6 {[%clk 0:07:17]}  Qf7 {[%clk 0:08:37]} 30. Re2 {[%clk 0:06:24]}  Ndxc4 {[%clk 0:08:31]} 31. Nxc4 {[%clk 0:06:24]}  Nxc4 {[%clk 0:08:31]} 32. Rc6 {[%clk 0:06:08]}  Rd4 {[%clk 0:07:48]} 33. Rxc5 {[%clk 0:05:22]}  Rfd8 {[%clk 0:07:48]} 34. Qc3 {[%clk 0:05:22]}  Qf4 {[%clk 0:06:59]} 35. Qg3 {[%clk 0:05:06]}  Qxg3 {[%clk 0:06:59]} 36. fxg3 {[%clk 0:05:06]}  R8d7 {[%clk 0:06:59]} 37. g5 {[%clk 0:05:17]}  Kg7 {[%clk 0:04:08]} 38. h4 {[%clk 0:05:17]}  Nd6 {[%clk 0:04:07]} 39. Kh2 {[%clk 0:04:34]}  Nf5 {[%clk 0:04:07]} 40. Bh3 {[%clk 0:04:27]}  Rd2 {[%clk 0:03:28]} 41. Rc2 {[%clk 0:03:26]}  Rxe2+ {[%clk 0:03:28]} 42. Rxe2 {[%clk 0:03:26]}  Rb7 {[%clk 0:03:28]} 43. Bxf5 {[%clk 0:03:26]}  gxf5 {[%clk 0:03:28]} 44. Re5 {[%clk 0:03:26]}  Kg6 {[%clk 0:02:59]} 45. Re6+ {[%clk 0:03:16]}  Kg7 {[%clk 0:02:59]} 46. Ra6 {[%clk 0:03:24]}  Rb2+ {[%clk 0:02:04]} 47. Kh3 {[%clk 0:03:24]}  Rb7 {[%clk 0:02:04]} 48. Kg2 {[%clk 0:03:24]}  Rb1 {[%clk 0:02:04]} 49. h5 {[%clk 0:03:24]}  Rb7 {[%clk 0:02:04]} 50. Kf3 {[%clk 0:03:24]}  Rc7 {[%clk 0:01:36]} 51. Kf4 {[%clk 0:03:24]}  Rf7 {[%clk 0:01:36]} 52. Ra5 {[%clk 0:03:24]}  h6 {[%clk 0:01:36]} 53. Rxf5 {[%clk 0:03:26]}  Rb7 {[%clk 0:01:22]} 54. Ra5 {[%clk 0:03:26]}  a6 {[%clk 0:01:22]} 55. gxh6+ {[%clk 0:03:26]}  Kxh6 {[%clk 0:01:22]} 56. Rxa6+ {[%clk 0:03:26]} 1-0


[Site "http://www.Chess.com"]